fUST/lending_fUST_20250301
["ID","MTS","AMOUNT","RATE_DAILY","PERIOD"]
[354903276,1740804639141,-500.0,0.00039689,2]
[354903277,1740804639151,-500.0,0.00039689,2]
[354903278,1740804639160,-2084.18,0.00039689,2]
[354903279,1740804639170,-615.3,0.00039689,2]
[354903280,1740804639180,-500.0,0.00039689,2]
[354903281,1740804639189,-2633.42,0.00039689,2]
[354903282,1740804639200,-1275.1,0.00039689,2]
[354903283,1740804639210,-1510.85,0.00039689,2]
[354903284,1740804639220,-921.59,0.00039689,2]
[354903285,1740804639230,-500.0,0.00039689,2]
[354903286,1740804639240,-507.79,0.00039689,2]
[354903287,1740804639250,-500.0,0.00039689,2]
[354903288,1740804639260,-500.0,0.00039689,2]
[354903289,1740804639269,-1089.16,0.00039689,2]
[354903290,1740804639279,-586.21,0.00039689,2]
[354903291,1740804639289,-621.61,0.00039689,2]
[354903292,1740804639299,-507.40677207,0.00039689,2]
[354903293,1740804639309,-500.0,0.00039689,2]
[354903294,1740804639319,-1804.14,0.00039689,2]
[354903295,1740804639329,-500.0,0.00039689,2]
[354903296,1740804639339,-500.0,0.00039689,2]
[354903297,1740804639348,-500.0,0.00039689,2]
[354903298,1740804639358,-981.99,0.00039689,2]
[354903299,1740804639368,-500.0,0.00039689,2]
[354903300,1740804639377,-563.14,0.00039689,2]
[354903301,1740804639387,-500.0,0.00039689,2]
[354903302,1740804639397,-500.0,0.00039689,2]
[354903303,1740804639407,-537.4,0.00039689,2]
[354903304,1740804639416,-500.0,0.00039689,2]
[354903305,1740804639426,-528.17,0.00039689,2]
[354903306,1740804639435,-981.53,0.00039689,2]
[354903307,1740804639444,-500.0,0.00039689,2]
[354903308,1740804639455,-500.0,0.00039689,2]
[354903309,1740804639464,-500.0,0.00039689,2]
[354903310,1740804639474,-10248.01,0.00039689,2]
[354903311,1740804639484,-500.0,0.00039689,2]
[354903312,1740804639494,-500.0,0.00039689,2]
[354903313,1740804639504,-828.71,0.00039689,2]
[354903314,1740804639514,-821.19,0.00039689,2]
[354903315,1740804639523,-500.0,0.00039689,2]
[354903316,1740804639532,-1635.19,0.00039689,2]
[354903317,1740804639542,-267.78360873,0.00039689,2]
[354903318,1740804639552,-35361.51,0.00039689,2]
[354903319,1740804639561,-500.0,0.00039689,2]
[354903320,1740804639571,-1551.66,0.00039689,2]
[354903321,1740804639580,-100566.84430168,0.0003969,30]
[354903322,1740804639589,-176.87811644,0.00039696,2]
[354903323,1740804639599,-9181.17886725,0.00039697,2]
[354903324,1740804639609,-222000.0,0.00039698,2]
[354903325,1740804639620,-433.66,0.000397,7]
[354903326,1740804639630,-4959.69,0.000397,30]
[354903327,1740804639640,-1141.92,0.000397,30]
[354903328,1740804639650,-100123.28,0.000397,30]
[354903329,1740804639660,-2522.14,0.000397,30]
[354903330,1740804639670,-4852.88225825,0.000397,30]
[354903338,1740804640330,-1330.87774175,0.000397,30]
[354903339,1740804640340,-1000.0,0.000397,5]
[354903340,1740804640350,-180.2663866,0.0003971,2]
[354903341,1740804640360,-237.90476766,0.00039773,5]
[354903342,1740804640370,-9476.84543996,0.00039788,30]
[354903354,1740804640851,-67188.03907496,0.00039788,30]
[354903355,1740804640863,-113550.00000002,0.00039788,30]
[354903410,1740805630112,-175.4791208,0.00032877,2]
[354903411,1740805630133,-292.537681,0.00035085,2]
[354903412,1740805630156,-183.1074528,0.00035646,120]
[354903413,1740805630179,-400.0,0.00036685,2]
[354903414,1740805630202,-187.6158993,0.00036686,2]
[354903416,1740805759274,-400.0,0.00036685,2]
[354903417,1740805759299,-24712.3841007,0.00036686,2]
[354903418,1740805759325,-1827.79396062,0.000368,101]
[354903419,1740805759350,-202.17374181,0.000369,7]
[354903420,1740805759374,-1956.1255949,0.0003703,2]
[354903421,1740805759397,-276.04103783,0.00037688,2]
[354903422,1740805759424,-1827.79396061,0.00037977,108]
[354903423,1740805759449,-208.0,0.00038,2]
[354903424,1740805759472,-355.7160855,0.00038219,30]
[354903425,1740805759494,-355.7160855,0.00038219,30]
[354903426,1740805759516,-355.7160855,0.00038219,30]
[354903427,1740805759549,-355.7160855,0.00038219,30]
[354903428,1740805780064,535.2247362,0.00036232,2]
[354903429,1740805788215,593.0,0.00025205,3]
[354903430,1740805804246,500.0,0.00025205,4]
[354903431,1740805814471,355.7160855,0.00038219,30]
[354903432,1740805815404,500.0,0.00025205,5]
[354903433,1740805830927,500.0,0.00025205,5]
[354903434,1740805831167,150.0,0.00035877,2]
[354903460,1740805833240,-202.17374179,0.00038445,8]
[354903461,1740805833250,-979.98884429,0.0003875,60]
[354903462,1740805833270,-1215.5387898,0.0003875,60]
[354903465,1740805838392,-7804.47236591,0.0003875,60]
[354903466,1740805838402,-744.93001462,0.00038889,120]
[354903467,1740805838412,-224.10988598,0.00039,2]
[354903468,1740805838565,-515.94176836,0.00039,2]
[354903469,1740805838574,-376.41823164,0.00039,2]
[354903470,1740805838585,-485.65008802,0.00039,2]
[354903471,1740805838600,-137.93168034,0.00039,2]
[354903472,1740805838611,-1827.79396061,0.00039153,115]
[354903473,1740805838620,-256.4284066,0.00039178,30]
[354903474,1740805838629,-480.39,0.0003949,3]
[354903475,1740805838638,-500.0,0.00039499,2]
[354903476,1740805838648,-500.0,0.00039499,15]
[354903477,1740805838657,-500.0,0.00039499,15]
[354903478,1740805838667,-500.0,0.00039499,15]
[354903479,1740805838679,-500.0,0.00039499,15]
[354903480,1740805838688,-500.0,0.00039499,15]
[354903481,1740805838698,-500.0,0.00039499,15]
[354903482,1740805838707,-500.0,0.00039499,15]
[354903483,1740805838717,-617.60464206,0.00039499,15]
[354903484,1740805838726,-500.0,0.00039499,15]
[354903485,1740805838735,-500.0,0.00039499,15]
[354903486,1740805838745,-500.0,0.00039499,15]
[354903487,1740805838754,-500.0,0.00039499,15]
[354903488,1740805838764,-500.0,0.00039499,15]
[354903489,1740805838774,-500.0,0.00039499,15]
[354903490,1740805838783,-500.0,0.00039499,15]
[354903491,1740805838792,-500.0,0.00039499,15]
[354903492,1740805838802,-500.0,0.00039499,15]
[354903493,1740805838811,-500.0,0.00039499,15]
[354903494,1740805838820,-500.0,0.00039499,15]
[354903495,1740805838830,-500.0,0.00039499,15]
[354903496,1740805838839,-500.0,0.00039499,15]
[354903497,1740805838848,-10000.0,0.000395,70]
[354903498,1740805838858,-795399.68707653,0.000395,120]
[354903504,1740805840763,-2416.24598576,0.000395,120]
[354903505,1740805842999,355.7160855,0.00038219,30]
[354903521,1740805843912,-151679.14304265,0.000395,120]
[354903541,1740805948320,707.22279207,0.00031,10]
[354903553,1740806819110,-162.1196155,0.00034285,2]
[354903554,1740806819131,-459.8594818,0.0003459,64]
[354903555,1740806819153,-108.01175106,0.00036684,2]
[354903556,1740806828076,-400.0,0.00036684,2]
[354903557,1740806828099,-500.0,0.00036685,2]
[354903558,1740806828121,-784.23,0.00036685,2]
[354903559,1740806828142,-500.0,0.00036685,2]
[354903560,1740806828164,-731.11758426,0.00036726,101]
[354903561,1740806828186,-12055.44824723,0.00036826,2]
[354903562,1740806844131,-263.49948714,0.00036826,2]
[354903568,1740806922401,7119.74862296,0.00021,30]
[354903575,1740806955257,-452.36671037,0.0002023,2]
[354903576,1740806955281,-300.0,0.00020999,2]
[354903577,1740806955303,-238.44074741,0.00021,2]
[354903578,1740806955324,-5379.94359515,0.00021,2]
[354903579,1740806955345,-346.02507404,0.00022,2]
[354903580,1740806955366,-344.82239926,0.00022,2]
[354903581,1740806955388,-12179.36363794,0.00022,2]
[354903582,1740806955409,-420.0,0.00022842,2]
[354903583,1740806955434,-174.0,0.00024847,2]
[354903584,1740806955455,-337.11503041,0.00027,2]
[354903585,1740806955479,-500.0,0.00036826,2]
[354903586,1740806955501,-12581.05226563,0.00036826,2]
[354903587,1740806955523,-10000.0,0.00036974,2]
[354903588,1740806971096,-571.73855669,0.000374,2]
[354903589,1740806971118,-731.11758424,0.00037827,107]
[354903590,1740806971143,-209.0,0.00038,2]
[354903607,1740807033523,-204.5694546,0.000389,8]
[354903608,1740807033537,-238.68304575,0.0003896,2]
[354903609,1740807033547,-547.64,0.00038989,3]
[354903610,1740807033557,-197.64,0.0003899,2]
[354903611,1740807033568,-500.0,0.0003899,2]
[354903612,1740807033578,-500.0,0.0003899,2]
[354903613,1740807033588,-500.0,0.0003899,2]
[354903614,1740807033599,-500.0,0.0003899,2]
[354903615,1740807033609,-500.0,0.0003899,2]
[354903616,1740807033619,-500.0,0.00038998,2]
[354903617,1740807033629,-500.0,0.00038998,15]
[354903618,1740807033639,-500.0,0.00038998,15]
[354903619,1740807033649,-500.0,0.00038998,15]
[354903620,1740807033658,-500.0,0.00038998,15]
[354903621,1740807033668,-500.0,0.00038998,15]
[354903622,1740807033677,-500.0,0.00038998,15]
[354903623,1740807033687,-500.0,0.00038999,2]
[354903624,1740807033697,-2829.8,0.00038999,2]
[354903625,1740807033707,-2996.96,0.00038999,2]
[354903626,1740807033717,-917.75,0.00038999,2]
[354903627,1740807033727,-500.0,0.00038999,2]
[354903628,1740807033737,-812.84,0.00038999,2]
[354903629,1740807033746,-2774.34928488,0.00038999,2]
[354903630,1740807037390,636.32536798,0.00036899,2]
[354903647,1740807038758,-500.0,0.00038998,15]
[354903648,1740807038768,-241.49431333,0.00038998,15]
[354903649,1740807038777,-500.0,0.00038998,15]
[354903650,1740807038788,-500.0,0.00038998,15]
[354903651,1740807038797,-500.0,0.00038998,15]
[354903652,1740807038807,-500.0,0.00038998,15]
[354903653,1740807038817,-500.0,0.00038998,15]
[354903654,1740807038827,-500.0,0.00038998,15]
[354903655,1740807038836,-500.0,0.00038998,15]
[354903656,1740807038845,-500.0,0.00038998,15]
[354903658,1740807038854,-500.0,0.00038998,15]
[354903660,1740807038863,-500.0,0.00038998,15]
[354903661,1740807038873,-500.0,0.00038998,15]
[354903662,1740807038882,-500.0,0.00038998,15]
[354903663,1740807038891,-500.0,0.00038998,15]
[354903664,1740807038900,-500.0,0.00038998,15]
[354903665,1740807038910,-500.0,0.00038998,15]
[354903666,1740807038919,-500.0,0.00038998,15]
[354903667,1740807038928,-500.0,0.00038998,15]
[354903668,1740807038937,-500.0,0.00038998,15]
[354903669,1740807038945,-500.0,0.00038998,15]
[354903670,1740807038954,-2200.13071512,0.00038999,2]
[354903671,1740807038966,-664.54,0.00038999,2]
[354903672,1740807038976,-500.0,0.00038999,2]
[354903673,1740807038991,-1892.57,0.00038999,2]
[354903674,1740807039003,-3843.91,0.00038999,2]
[354903675,1740807039023,-551.92,0.00038999,2]
[354903676,1740807039033,-1537.97,0.00038999,5]
[354903677,1740807039042,-1836.08,0.00038999,2]
[354903678,1740807039052,-535.9,0.00038999,2]
[354903679,1740807039061,-27032.06,0.00038999,2]
[354903680,1740807039070,-500.0,0.00038999,2]
[354903681,1740807039079,-4009.13,0.00038999,2]
[354903682,1740807039089,-10967.48,0.00038999,2]
[354903683,1740807039097,-1315.45,0.00038999,2]
[354903684,1740807039107,-1385.12,0.00038999,2]
[354903685,1740807039117,-7223.74,0.00038999,2]
[354903686,1740807039126,-500.0,0.00038999,2]
[354903687,1740807039136,-5441.21,0.00038999,2]
[354903688,1740807039144,-500.0,0.00038999,2]
[354903689,1740807039154,-500.0,0.00038999,2]
[354903690,1740807039163,-3118.89,0.00038999,2]
[354903691,1740807039172,-500.0,0.00038999,2]
[354903692,1740807039181,-500.0,0.00038999,2]
[354903693,1740807039191,-500.0,0.00038999,2]
[354903694,1740807039200,-643.36,0.00038999,2]
[354903695,1740807039210,-500.0,0.00038999,2]
[354903696,1740807039220,-500.0,0.00038999,2]
[354903697,1740807039229,-500.0,0.00038999,2]
[354903698,1740807039239,-501.67719612,0.00038999,2]
[354903699,1740807039248,-500.0,0.00038999,2]
[354903700,1740807039258,-1194.15,0.00038999,2]
[354903701,1740807039267,-964.16931298,0.00039,2]
[354903702,1740807039276,-238.68304575,0.00039067,2]
[354903703,1740807039285,-238.68304575,0.00039174,2]
[354903704,1740807039294,-500.0,0.00039176,2]
[354903705,1740807039303,-500.0,0.00039177,2]
[354903706,1740807039312,-784.23,0.00039177,2]
[354903707,1740807039321,-500.0,0.00039177,2]
[354903708,1740807039330,-273.82,0.0003919,3]
[354903709,1740807039339,-911.1,0.000392,50]
[354903710,1740807039348,-500.0,0.00039272,2]
[354903711,1740807039357,-500.0,0.00039273,2]
[354903712,1740807039366,-2829.8,0.00039273,2]
[354903713,1740807039375,-2996.96,0.00039273,2]
[354903714,1740807039384,-917.75,0.00039273,2]
[354903715,1740807039393,-500.0,0.00039273,2]
[354903716,1740807039402,-812.84,0.00039273,2]
[354903717,1740807039411,-4974.48,0.00039273,2]
[354903718,1740807039421,-664.54,0.00039273,2]
[354903719,1740807039430,-1892.57,0.00039273,2]
[354903720,1740807039440,-3843.91,0.00039273,2]
[354903721,1740807039452,-551.92,0.00039273,2]
[354903722,1740807039461,-1537.97,0.00039273,5]
[354903723,1740807039471,-535.9,0.00039273,2]
[354903724,1740807039482,-1836.08,0.00039273,2]
[354903725,1740807039491,-500.0,0.00039273,2]
[354903726,1740807039500,-4009.13,0.00039273,2]
[354903727,1740807039510,-10967.48,0.00039273,2]
[354903728,1740807039520,-1315.45,0.00039273,2]
[354903729,1740807039531,-1385.12,0.00039273,2]
[354903730,1740807039541,-7223.74,0.00039273,2]
[354903731,1740807039550,-516.44564632,0.00039273,2]
[354903732,1740807039560,-5441.21,0.00039273,2]
[354903733,1740807039569,-500.0,0.00039273,2]
[354903734,1740807039578,-3118.89,0.00039273,2]
[354903735,1740807039587,-500.0,0.00039273,2]
[354903736,1740807039597,-500.0,0.00039273,2]
[354903737,1740807039607,-500.0,0.00039273,2]
[354903738,1740807039616,-643.36,0.00039273,2]
[354903739,1740807039625,-447.1481797,0.00039273,2]
[354903740,1740807039635,-500.0,0.00039273,2]
[354903741,1740807039644,-500.0,0.00039273,2]
[354903742,1740807039653,-500.0,0.00039273,2]
[354903743,1740807039662,-1194.15,0.00039273,2]
[354903744,1740807039671,-238.68304575,0.0003928,2]
[354903745,1740807039680,-216.14488607,0.00039325,2]
[354903746,1740807039689,-238.68304575,0.00039387,2]
[354903747,1740807039698,-500.0,0.00039398,2]
[354903748,1740807039707,-500.0,0.00039398,15]
[354903749,1740807039716,-500.0,0.00039398,15]
[354903750,1740807039725,-189.07619924,0.00039398,15]
[354903751,1740807039734,-573.60494416,0.00039398,15]
[354903752,1740807039743,-680.8,0.00039399,2]
[354903753,1740807039752,-500.0,0.00039399,2]
[354903754,1740807039762,-500.0,0.00039399,2]
[354903755,1740807039772,-576.54,0.00039399,2]
[354903756,1740807039781,-734.11,0.00039399,2]
[354903757,1740807039791,-1060.88,0.00039399,2]
[354903758,1740807039800,-500.0,0.00039399,2]
[354903759,1740807039809,-503.1010957,0.00039399,2]
[354903760,1740807039818,-500.0,0.00039399,2]
[354903761,1740807039827,-500.0,0.00039399,2]
[354903762,1740807039836,-571.5,0.00039399,2]
[354903763,1740807039846,-2051.48,0.00039399,2]
[354903764,1740807039855,-500.0,0.00039399,2]
[354903765,1740807039865,-500.0,0.00039399,2]
[354903766,1740807039875,-2184.09,0.00039399,2]
[354903767,1740807039885,-500.0,0.00039399,2]
[354903768,1740807039895,-500.0,0.00039399,2]
[354903769,1740807039904,-504.83650581,0.00039399,2]
[354903770,1740807039913,-2622.3,0.00039399,2]
[354903771,1740807039923,-500.0,0.00039399,2]
[354903772,1740807039932,-1488.49,0.00039399,2]
[354903773,1740807039942,-514.62,0.00039399,2]
[354903774,1740807039951,-903.98,0.00039399,2]
[354903775,1740807039960,-500.0,0.00039399,2]
[354903776,1740807039970,-547.39,0.00039399,2]
[354903777,1740807039979,-500.0,0.00039399,2]
[354903778,1740807039988,-500.0,0.00039399,2]
[354903779,1740807039997,-1000.0,0.00039399,2]
[354903780,1740807040007,-500.0,0.00039399,2]
[354903781,1740807040016,-1798.0,0.00039399,2]
[354903782,1740807040026,-500.0,0.00039399,2]
[354903783,1740807040037,-501.91751933,0.00039399,2]
[354903784,1740807040046,-1637.0,0.00039399,2]
[354903785,1740807040056,-526.76,0.00039399,2]
[354903786,1740807040065,-500.0,0.00039399,2]
[354903787,1740807040075,-4504.14,0.00039399,2]
[354903788,1740807040084,-2206.06,0.00039399,2]
[354903789,1740807040094,-9553.57,0.00039399,2]
[354903790,1740807040104,-500.0,0.00039399,2]
[354903791,1740807040113,-14585.68,0.00039399,2]
[354903792,1740807040123,-671.5,0.00039399,2]
[354903793,1740807040132,-500.0,0.00039399,2]
[354903794,1740807040142,-1679.11,0.00039399,2]
[354903795,1740807040152,-500.0,0.00039399,2]
[354903796,1740807040162,-500.0,0.00039399,2]
[354903797,1740807040171,-935.42,0.00039399,2]
[354903798,1740807040180,-4765.72,0.00039399,2]
[354903799,1740807040189,-708.73,0.00039399,2]
[354903800,1740807040199,-500.0,0.00039399,2]
[354903801,1740807040208,-1829.22,0.00039399,2]
[354903802,1740807040217,-500.0,0.00039399,2]
[354903803,1740807040226,-500.0,0.00039399,2]
[354903804,1740807040236,-500.0,0.00039399,2]
[354903805,1740807040245,-1786.92,0.00039399,2]
[354903806,1740807040255,-1088.41,0.00039399,2]
[354903807,1740807040264,-4514.55,0.00039399,2]
[354903808,1740807040274,-2741.51,0.00039399,2]
[354903809,1740807040283,-799.23,0.00039399,2]
[354903810,1740807040292,-2883.74,0.00039399,2]
[354903811,1740807040302,-500.0,0.00039399,2]
[354903812,1740807040312,-500.0,0.00039399,2]
[354903813,1740807040321,-800.46,0.00039399,2]
[354903814,1740807040330,-1034.53,0.00039399,2]
[354903815,1740807040340,-500.0,0.00039399,2]
[354903816,1740807040349,-500.0,0.00039399,2]
[354903817,1740807040359,-574.68,0.00039399,2]
[354903818,1740807040368,-500.0,0.00039399,2]
[354903820,1740807040377,-1692.99,0.00039399,2]
[354903822,1740807040386,-1436.19,0.00039399,2]
[354903823,1740807040395,-561.26,0.00039399,2]
[354903825,1740807040404,-500.0,0.00039399,2]
[354903826,1740807040414,-1938.08,0.00039399,2]
[354903827,1740807040423,-500.0,0.00039399,2]
[354903828,1740807040432,-500.0,0.00039399,2]
[354903829,1740807040441,-500.0,0.00039399,2]
[354903830,1740807040455,-632.24,0.00039399,2]
[354903831,1740807040464,-894.3,0.00039399,2]
[354903832,1740807040473,-777.91,0.00039399,2]
[354903833,1740807040483,-765.97,0.00039399,2]
[354903834,1740807040494,-2800.89,0.00039399,2]
[354903835,1740807040503,-1638.16,0.00039399,2]
[354903836,1740807040514,-552.11,0.00039399,2]
[354903837,1740807040525,-540.08,0.00039399,2]
[354903838,1740807040545,-2107.04,0.00039399,2]
[354903839,1740807040556,-1825.2,0.00039399,2]
[354903840,1740807040565,-1044.44,0.00039399,2]
[354903841,1740807040575,-501.93678136,0.00039399,2]
[354903842,1740807040584,-39583.16,0.00039399,2]
[354903843,1740807040594,-1738.69,0.00039399,2]
[354903844,1740807040603,-500.0,0.00039399,2]
[354903845,1740807040613,-1640.34,0.00039399,2]
[354903846,1740807040623,-500.0,0.00039399,2]
[354903847,1740807040632,-500.0,0.00039399,2]
[354903848,1740807040641,-2658.31,0.00039399,2]
[354903849,1740807040651,-500.0,0.00039399,2]
[354903850,1740807040660,-500.0,0.00039399,2]
[354903851,1740807040669,-500.0,0.00039399,2]
[354903852,1740807040678,-561.76,0.00039399,2]
[354903853,1740807040687,-222000.0,0.000394,2]
[354903854,1740807040696,-500.0,0.00039473,5]
[354903855,1740807040705,-505.25202519,0.00039473,5]
[354903856,1740807040715,-500.0,0.00039473,5]
[354903857,1740807040724,-508.26463776,0.00039473,5]
[354903858,1740807040732,-500.0,0.00039473,5]
[354903859,1740807040742,-514.82396607,0.00039473,5]
[354903860,1740807040751,-278.38885452,0.00039473,5]
[354903861,1740807040761,-500.0,0.00039473,5]
[354903862,1740807040770,-500.0,0.00039473,5]
[354903863,1740807040779,-500.0,0.00039473,5]
[354903864,1740807040788,-500.0,0.00039473,3]
[354903865,1740807040797,-500.0,0.00039473,5]
[354903866,1740807040806,-472.00599499,0.00039473,5]
[354903867,1740807040815,-152.55130508,0.00039473,5]
[354903868,1740807040825,-162.47645121,0.00039487,4]
[354903869,1740807040834,-11143.22307565,0.00039487,2]
[354903870,1740807040843,-166.15,0.00039499,2]
[354903871,1740807040852,-500.0,0.00039499,2]
[354903872,1740807040862,-510.17092007,0.00039499,2]
[354903873,1740807040871,-500.0,0.00039499,2]
[354903874,1740807040880,-500.0,0.00039499,2]
[354903875,1740807040889,-1621.76,0.00039499,2]
[354903876,1740807040899,-500.0,0.00039499,2]
[354903877,1740807040908,-728.51,0.00039499,2]
[354903878,1740807040917,-520.03020786,0.00039499,2]
[354903879,1740807040927,-500.0,0.00039499,2]
[354903880,1740807040936,-224.32975902,0.00039499,2]
[354903881,1740807040945,-500.0,0.00039499,2]
[354903882,1740807040954,-500.0,0.00039499,2]
[354903883,1740807040964,-500.0,0.00039499,2]
[354903884,1740807040974,-506.95115111,0.00039499,2]
[354903885,1740807040983,-500.0,0.00039499,2]
[354903886,1740807040992,-500.0,0.00039499,2]
[354903887,1740807041003,-500.0,0.00039499,2]
[354903888,1740807041012,-500.0,0.00039499,2]
[354903890,1740807041022,-500.0,0.00039499,2]
[354903891,1740807041031,-500.0,0.00039499,2]
[354903892,1740807041040,-512.42,0.00039499,2]
[354903893,1740807041049,-500.0,0.00039499,2]
[354903894,1740807041059,-500.0,0.00039499,2]
[354903895,1740807041068,-500.0,0.00039499,2]
[354903896,1740807041077,-500.0,0.00039499,2]
[354903897,1740807041086,-500.0,0.00039499,2]
[354903898,1740807041096,-500.0,0.00039499,2]
[354903899,1740807041105,-500.0,0.00039499,2]
[354903900,1740807041115,-500.0,0.00039499,2]
[354903901,1740807041124,-855.71,0.00039499,2]
[354903902,1740807041134,-509.37184616,0.00039499,2]
[354903903,1740807041144,-500.0,0.00039499,2]
[354903904,1740807041153,-601.88,0.00039499,2]
[354903905,1740807041167,-500.0,0.00039499,2]
[354903906,1740807041177,-638.5,0.00039499,2]
[354903907,1740807041188,-500.0,0.00039499,2]
[354903908,1740807041199,-500.0,0.00039499,2]
[354903909,1740807041208,-502.19316259,0.00039499,2]
[354903910,1740807041220,-544.05,0.00039499,2]
[354903911,1740807041230,-500.0,0.00039499,2]
[354903912,1740807041240,-500.0,0.00039499,2]
[354903913,1740807041250,-500.0,0.00039499,2]
[354903914,1740807041260,-500.0,0.00039499,2]
[354903915,1740807041270,-251.63711037,0.00039499,2]
[354903916,1740807041280,-500.0,0.00039499,2]
[354903917,1740807041290,-500.0,0.00039499,2]
[354903918,1740807041300,-500.0,0.00039499,2]
[354903919,1740807041311,-500.0,0.00039499,2]
[354903920,1740807041320,-500.0,0.00039499,2]
[354903921,1740807041330,-500.0,0.00039499,2]
[354903922,1740807041339,-500.0,0.00039499,2]
[354903923,1740807041349,-500.0,0.00039499,2]
[354903924,1740807041360,-500.0,0.00039499,2]
[354903925,1740807041370,-500.0,0.00039499,2]
[354903926,1740807041380,-500.0,0.00039499,2]
[354903927,1740807041391,-500.0,0.00039499,2]
[354903928,1740807041401,-500.0,0.00039499,2]
[354903929,1740807041411,-500.0,0.00039499,2]
[354903930,1740807041427,-1366.91,0.00039499,2]
[354903931,1740807041437,-500.0,0.00039499,2]
[354903932,1740807041450,-703.9,0.00039499,2]
[354903933,1740807041460,-500.0,0.00039499,2]
[354903934,1740807041471,-505.98815368,0.00039499,2]
[354903935,1740807041481,-577.24,0.00039499,2]
[354903936,1740807041491,-536.47727255,0.00039499,2]
[354903937,1740807041503,-500.0,0.00039499,2]
[354903938,1740807041513,-500.0,0.00039499,2]
[354903939,1740807041524,-200.0,0.00039499,2]
[354903940,1740807041535,-500.0,0.00039499,2]
[354903941,1740807041545,-500.0,0.00039499,2]
[354903942,1740807041556,-502.64324863,0.00039499,2]
[354903943,1740807041566,-500.0,0.00039499,2]
[354903944,1740807041576,-582.33560244,0.00039499,2]
[354903945,1740807041588,-655.07,0.00039499,2]
[354903946,1740807041599,-500.0,0.00039499,2]
[354903947,1740807041608,-500.0,0.00039499,2]
[354903948,1740807041619,-500.0,0.00039499,2]
[354903949,1740807041629,-500.0,0.00039499,2]
[354903950,1740807041640,-500.0,0.00039499,2]
[354903951,1740807041650,-620.43,0.00039499,2]
[354903952,1740807041660,-500.0,0.00039499,2]
[354903953,1740807041671,-500.0,0.00039499,2]
[354903954,1740807041681,-500.0,0.00039499,2]
[354903955,1740807041692,-500.0,0.00039499,2]
[354903956,1740807041703,-500.0,0.00039499,2]
[354903957,1740807041713,-626.79,0.00039499,2]
[354903958,1740807041723,-501.9341304,0.00039499,2]
[354903959,1740807041733,-500.0,0.00039499,2]
[354903960,1740807041744,-989.71,0.00039499,2]
[354903961,1740807041754,-500.0,0.00039499,2]
[354903962,1740807041766,-500.0,0.00039499,2]
[354903963,1740807041776,-509.34185723,0.00039499,2]
[354903964,1740807041787,-507.06447468,0.00039499,2]
[354903965,1740807041798,-171.00372377,0.00039499,2]
[354903966,1740807041808,-500.0,0.00039499,2]
[354903967,1740807041819,-500.0,0.00039499,2]
[354903968,1740807041829,-500.0,0.00039499,2]
[354903969,1740807041840,-500.0,0.00039499,2]
[354903970,1740807041851,-500.0,0.00039499,2]
[354903971,1740807041862,-500.0,0.00039499,2]
[354903972,1740807041873,-959.44,0.00039499,2]
[354903973,1740807041883,-500.0,0.00039499,2]
[354903974,1740807041894,-500.0,0.00039499,2]